bitfinex/quotes_SOLUSD_20240717
["timestamp","ask_amount","ask_price","bid_price","bid_amount"]
[1721180585844,1.53126637,163.29,163.25,15.98495375]
[1721180586056,1.53126637,163.29,163.25,14.76]
[1721180586365,1.53119431,163.29,163.25,14.76]
[1721180586538,1.53119431,163.29,163.24,30.0739]
[1721180586858,16.29125783,163.3,163.25,20.8854]
[1721180587063,1.53125783,163.3,163.25,20.8854]
[1721180587557,1.53125783,163.3,163.26,14.76]
[1721180588561,1.53113509,163.31,163.26,20.8851]
[1721180588767,6.6041,163.35,163.29,20.8838]
[1721180589059,6.6041,163.35,163.3,15.98462617]
[1721180589460,6.6041,163.35,163.3,14.76]
[1721180589659,12.7261,163.35,163.3,14.76]
[1721180589964,6.1222,163.34,163.29,15.98462501]
[1721180590162,1.53081812,163.33,163.29,15.98462501]
[1721180590471,1.53081812,163.33,163.29,1.22462501]
[1721180590647,1.53081812,163.33,163.28,21.4349]
[1721180590847,1.53081812,163.33,163.27,6.1247]
[1721180591055,6.1233,163.31,163.25,15.3135]
[1721180591244,1.53105512,163.3,163.25,21.4389]
[1721180591444,7.65405489,163.32,163.25,21.4389]
[1721180591962,6.1234,163.31,163.25,21.4389]
[1721180592173,1.53105693,163.3,163.25,21.4389]
[1721180593253,1.53106647,163.31,163.25,21.4389]
[1721180594142,1.53106647,163.31,163.25,15.3135]
[1721180594362,7.65366841,163.33,163.25,15.3135]
[1721180594548,1.53109394,163.32,163.25,15.3135]
[1721180594748,1.53109394,163.32,163.26,6.1251]
[1721180594948,1.53110233,163.33,163.29,15.3096]
[1721180595161,6.6041,163.35,163.3,6.1236]
[1721180595371,6.6041,163.35,163.31,6.1233]
[1721180595764,6.6041,163.35,163.3,6.1236]
[1721180595960,1.53073393,163.36,163.32,6.1227]
[1721180596466,18.06417195,163.37,163.32,6.1227]
[1721180596664,18.06417195,163.37,163.32,15.3072]
[1721180596873,18.06417195,163.37,163.32,21.43]
[1721180597164,18.06417195,163.37,163.32,15.3072]
[1721180597549,18.06417195,163.37,163.32,22.65441095]
[1721180597754,16.5336,163.37,163.34,15.3049]
[1721180597966,16.5336,163.37,163.29,1.22438713]
[1721180598181,16.5336,163.37,163.32,6.1226]
[1721180598545,16.5336,163.37,163.32,7.34698715]
[1721180599047,16.5336,163.37,163.32,6.1226]
[1721180599253,1.53048513,163.36,163.31,15.308]
[1721180600155,1.53055054,163.35,163.28,21.4349]
[1721180600369,1.53055054,163.35,163.29,6.124]
[1721180600678,1.53055054,163.35,163.29,7.34858207]
[1721180600850,1.53072739,163.36,163.3,16.53300708]
[1721180601049,16.5336,163.37,163.3,16.53300708]
[1721180601050,18.06411682,163.37,163.3,16.53300708]
[1721180601249,18.06411682,163.37,163.31,6.1232]
[1721180601468,18.06411682,163.37,163.3,15.3085]
[1721180601650,18.06411682,163.37,163.32,6.1228]
[1721180602062,1.530556,163.36,163.28,10.0]
[1721180602278,1.53057156,163.35,163.3,6.1233]
[1721180602856,1.53057156,163.35,163.31,1.22374838]
[1721180603258,1.53062342,163.36,163.31,1.22374838]
[1721180603453,1.53065131,163.35,163.31,1.22374838]
[1721180603660,1.53065131,163.36,163.31,1.22374838]
[1721180603852,1.53065131,163.36,163.31,6.1232]
[1721180604572,16.5336,163.37,163.31,15.3077]
[1721180604769,18.0640849,163.37,163.31,21.4306]
[1721180604951,16.5336,163.37,163.31,15.3077]
[1721180605279,1.53034348,163.36,163.31,15.3077]
[1721180605774,1.53057707,163.35,163.31,16.05552705]
[1721180606149,1.53060073,163.36,163.31,22.17872705]
[1721180606556,18.06413347,163.37,163.31,22.17872705]
[1721180606862,18.06413347,163.37,163.32,6.1229]
[1721180607062,16.5336,163.37,163.33,0.76196921]
[1721180607257,16.5336,163.37,163.31,15.3077]
[1721180607462,16.5336,163.37,163.33,6.1224]
[1721180607664,1.53044585,163.36,163.32,6.1228]
[1721180607865,1.53044585,163.36,163.31,21.431]
[1721180608570,18.06410226,163.37,163.31,21.431]
[1721180608878,18.06410226,163.37,163.32,6.1229]
[1721180609077,18.06410226,163.37,163.31,21.4309]
[1721180609278,24.18520226,163.37,163.31,21.4309]
[1721180609478,24.18520226,163.37,163.31,15.3077]
[1721180609672,24.18520226,163.37,163.29,6.1239]
[1721180609673,6.1215,163.36,163.29,6.1239]
[1721180609976,1.5306242,163.35,163.3,6.1235]
[1721180610165,1.5306242,163.35,163.29,6.124]
[1721180610369,1.5306242,163.35,163.3,6.1236]
[1721180610962,7.6525242,163.35,163.29,6.1239]
[1721180612363,14.74,163.33,163.29,6.1239]
[1721180612564,1.53084165,163.32,163.29,6.1239]
[1721180613072,14.74,163.33,163.29,6.1239]
[1721180613269,22.37002304,163.32,163.28,15.3106]
[1721180613588,22.37002304,163.32,163.26,6.125]
[1721180613769,22.37002304,163.32,163.24,10.0]
[1721180613770,7.63002304,163.32,163.24,10.0]
[1721180613976,7.63002304,163.32,163.28,20.8644]
[1721180614171,7.63002304,163.32,163.28,14.74]
[1721180614686,7.63002304,163.32,163.27,21.436]
[1721180614687,7.63002304,163.32,163.27,36.176]
[1721180615664,7.63002304,163.32,163.24,10.0]
[1721180615665,14.74,163.31,163.26,14.74]
[1721180615864,16.2710542,163.31,163.26,14.74]
[1721180616688,16.2710542,163.31,163.26,20.865]
[1721180617684,16.2710542,163.31,163.27,6.1247]
[1721180617881,1.5310542,163.31,163.27,6.1247]
[1721180618693,16.2710542,163.31,163.26,20.865]
[1721180619265,16.2710542,163.31,163.27,6.1248]
[1721180620898,16.2710542,163.31,163.28,6.1243]
[1721180621085,1.5310542,163.31,163.28,6.1243]
[1721180621291,1.5310542,163.31,163.27,20.8647]
[1721180621493,16.2710542,163.31,163.27,6.1247]
[1721180621790,1.5310542,163.31,163.27,20.8647]
[1721180621997,16.2710542,163.31,163.27,6.1247]
[1721180627904,1.5310542,163.31,163.27,20.8647]
[1721180628114,16.2710542,163.31,163.27,6.1247]
[1721180628577,6.0992,163.32,163.28,15.3106]
[1721180628786,1.53092387,163.31,163.28,21.4349]
[1721180629086,20.8392,163.32,163.28,21.4349]
[1721180629700,1.5309073,163.35,163.31,20.8633]
[1721180629995,1.53059621,163.36,163.32,20.8628]
[1721180630203,1.53059621,163.36,163.33,6.1225]
[1721180631803,1.53059621,163.36,163.32,20.8628]
[1721180632900,1.53059621,163.36,163.31,22.08767697]
[1721180633590,7.65244104,163.35,163.27,15.3115]
[1721180633777,14.74,163.32,163.27,15.3115]
[1721180634098,14.74,163.32,163.27,30.0515]
[1721180634272,14.74,163.32,163.28,14.74]
[1721180634273,1.53094629,163.32,163.28,14.74]
[1721180634706,16.27091691,163.33,163.28,14.74]
[1721180635002,1.53086997,163.32,163.28,14.74]
[1721180635896,1.53088031,163.33,163.29,30.0492]
[1721180636203,1.53088031,163.33,163.29,36.1732]
[1721180637475,1.53086905,163.32,163.29,30.0492]
[1721180637794,1.53086905,163.32,163.29,15.3092]
[1721180638196,1.53086905,163.32,163.28,20.8643]
[1721180639706,16.27086905,163.32,163.28,6.1243]
[1721180639902,14.74,163.32,163.28,6.1243]
[1721180640279,16.27087086,163.33,163.28,20.8643]
[1721180640686,1.53086845,163.32,163.27,20.8647]
[1721180641307,1.53086845,163.32,163.27,6.1247]
[1721180641308,16.27086845,163.32,163.27,6.1247]
[1721180641482,16.27090734,163.33,163.28,36.1745]
[1721180641921,1.53086813,163.32,163.28,36.1745]
[1721180642095,1.53086813,163.32,163.28,21.4345]
[1721180642286,16.27086813,163.32,163.28,15.3105]
[1721180643020,14.74,163.31,163.26,20.8651]
[1721180643314,1.53103911,163.3,163.26,20.8651]
[1721180643911,1.53103911,163.3,163.26,6.1251]
[1721180644113,1.53103911,163.3,163.27,6.1246]
[1721180644294,14.74,163.31,163.27,6.1246]
[1721180644496,1.53102763,163.3,163.27,6.1246]
[1721180648597,14.74,163.32,163.27,16.5362371]
[1721180648810,14.74,163.32,163.27,31.2762371]
[1721180649117,14.74,163.32,163.29,6.1237]
[1721180649914,14.74,163.33,163.29,6.1237]
[1721180650093,1.53090293,163.32,163.29,6.1237]
[1721180650296,1.53090199,163.36,163.32,6.1229]
[1721180650598,1.53090199,163.36,163.3,1.22472159]
[1721180650599,1.53090199,163.36,163.31,36.171]
[1721180650792,1.53054891,163.35,163.31,21.431]
[1721180651396,14.74,163.34,163.31,15.3078]
[1721180651721,16.27073773,163.33,163.28,30.0508]
[1721180651895,16.27093056,163.32,163.28,15.3108]
[1721180652095,14.74,163.32,163.28,21.4351]
[1721180653041,14.74,163.32,163.28,15.3108]
[1721180653401,14.74,163.32,163.28,21.4351]
[1721180653724,16.27092668,163.32,163.28,21.4351]
[1721180654027,1.53092668,163.32,163.28,21.4351]
[1721180654818,16.27092668,163.32,163.28,21.4351]
[1721180655618,16.27092668,163.32,163.19,10.0]
[1721180655619,23.92658843,163.31,163.19,10.0]
[1721180655820,14.74,163.24,163.19,6.1277]
[1721180656002,14.74,163.24,163.19,20.8677]
[1721180656194,14.74,163.23,163.19,21.4471]
[1721180656395,14.74,163.23,163.2,6.1273]
[1721180656829,14.74,163.23,163.19,21.4471]
[1721180657737,1.53155272,163.25,163.19,21.4471]
[1721180657944,14.74,163.23,163.19,21.4471]
[1721180658320,14.74,163.23,163.19,15.3194]
[1721180658725,14.74,163.23,163.17,20.8682]
[1721180660022,14.74,163.22,163.17,14.74]
[1721180660221,14.74,163.22,163.17,20.8685]
[1721180660832,14.74,163.22,163.17,14.74]
[1721180661044,22.39852389,163.22,163.16,36.42621219]
[1721180661214,6.1271,163.21,163.16,36.42621219]
[1721180661544,20.8671,163.21,163.16,36.42621219]
[1721180661720,6.1271,163.21,163.16,36.42621219]
[1721180662042,20.8668,163.22,163.16,36.42621219]
[1721180662218,20.8668,163.22,163.16,21.68621219]
[1721180662219,1.53186728,163.21,163.16,21.68621219]
[1721180662419,14.74,163.2,163.16,21.68621219]
[1721180662624,14.74,163.2,163.16,15.3219]
[1721180665242,14.74,163.2,163.15,14.74]
[1721180665446,20.8677,163.2,163.14,15.5802016]
[1721180665618,14.74,163.18,163.14,0.8402016]
[1721180666437,22.4004647,163.18,163.14,0.8402016]
[1721180666636,22.40087844,163.17,163.14,0.8402016]
[1721180666837,20.8686,163.17,163.14,0.8402016]
[1721180667737,14.74,163.17,163.14,0.8402016]
[1721180669322,14.74,163.16,163.14,0.8402016]
[1721180669522,14.74,163.17,163.14,0.8402016]
[1721180669748,16.27231439,163.17,163.14,0.8402016]
[1721180672741,14.74,163.17,163.14,0.8402016]
[1721180673554,14.74,163.15,163.14,0.8402016]
[1721180673733,22.40176577,163.15,163.14,0.8402016]
[1721180674128,14.74,163.15,163.14,0.8402016]
[1721180674852,6.414,163.19,163.14,0.8402016]
[1721180675049,14.74,163.17,163.14,0.8402016]
[1721180675259,14.74,163.16,163.14,0.8402016]
[1721180680365,20.869,163.16,163.14,0.8402016]
[1721180684962,6.1293,163.15,163.14,0.8402016]
[1721180686051,20.869,163.16,163.14,0.8402016]
[1721180686644,6.1293,163.15,163.14,0.8402016]
[1721180687362,22.40163265,163.15,163.14,0.8402016]
[1721180690449,7.66163265,163.15,163.14,0.8402016]
[1721180690649,20.8693,163.15,163.14,0.8402016]
[1721180693363,21.0393,163.15,163.14,0.8402016]
[1721180693542,22.74207508,163.15,163.14,0.8402016]
[1721180694768,42.74207508,163.15,163.14,0.8402016]
[1721180701750,42.40207508,163.15,163.14,0.8402016]
[1721180702373,1.53264782,163.16,163.14,0.8402016]
[1721180702588,14.74,163.15,163.14,0.8402016]
[1721180702885,20.8693,163.15,163.14,0.8402016]
[1721180703681,21.0393,163.15,163.14,0.8402016]
[1721180703857,21.2093,163.15,163.14,0.8402016]
[1721180704061,20.8693,163.15,163.14,0.8402016]
[1721180704258,1.53264782,163.16,163.14,0.8402016]
[1721180704491,20.8693,163.15,163.14,0.8402016]
[1721180706676,41.2093,163.15,163.14,0.8402016]
[1721180706875,40.8693,163.15,163.14,0.8402016]
[1721180708156,41.2093,163.15,163.14,0.8402016]
[1721180710689,59.6093,163.15,163.14,0.8402016]
[1721180710994,41.2093,163.15,163.14,0.8402016]
[1721180711863,26.1293,163.15,163.14,0.8402016]
[1721180712171,40.8693,163.15,163.14,0.8402016]
[1721180712380,7.66173287,163.16,163.14,0.8402016]
[1721180712579,14.74,163.15,163.14,0.8402016]
[1721180714087,20.8693,163.15,163.14,0.8402016]
[1721180714287,14.74,163.15,163.14,0.8402016]
[1721180717484,7.66134845,163.16,163.14,0.8402016]
[1721180717685,1.53244798,163.18,163.14,0.8402016]
[1721180717889,16.27227722,163.17,163.14,0.8402016]
[1721180718097,14.74,163.17,163.14,0.8402016]
[1721180719194,1.53227838,163.16,163.14,0.8402016]
[1721180719389,14.74,163.15,163.14,0.8402016]
[1721180719574,14.74,163.16,163.14,0.8402016]
[1721180720195,16.27231602,163.16,163.14,0.8402016]
[1721180720578,1.53231602,163.16,163.14,0.8402016]
[1721180720874,14.74,163.16,163.14,0.8402016]
[1721180721070,1.53242821,163.15,163.14,0.8402016]
[1721180721295,16.2724282,163.16,163.14,0.8402016]
[1721180721494,30.6096,163.35,163.14,15.5802016]
[1721180721495,1.53230357,163.22,163.14,15.5802016]
[1721180721694,14.74,163.21,163.15,20.8692]
[1721180722000,14.74,163.2,163.15,14.74]
[1721180722388,16.1831475,163.2,163.16,1.2256262]
[1721180722875,16.1831475,163.2,163.14,37.0335016]
[1721180723387,16.1831475,163.2,163.15,6.1292]
[1721180724276,16.1831475,163.2,163.14,37.0334016]
[1721180725284,16.1831475,163.2,163.15,6.1292]
[1721180725479,16.1831475,163.2,163.16,1.22562363]
[1721180725689,16.1831475,163.21,163.16,1.22562363]
[1721180725991,1.4431475,163.2,163.16,1.22562363]
[1721180726186,16.1831475,163.21,163.16,1.22562363]
[1721180726390,1.4431475,163.23,163.17,20.8684]
[1721180726591,1.4431475,163.26,163.18,1.22537695]
[1721180726800,15.0031,163.28,163.22,20.8664]
[1721180726801,1.4431475,163.27,163.22,20.8664]
[1721180726975,1.4431475,163.27,163.22,15.96514398]
[1721180727185,16.1831475,163.27,163.22,15.96514398]
[1721180727372,1.4431475,163.26,163.22,14.74]
[1721180727578,7.5671475,163.3,163.22,20.8666]
[1721180727791,14.74,163.27,163.22,14.74]
[1721180727991,1.4431475,163.26,163.21,30.4482]
[1721180728280,16.1831475,163.26,163.21,30.4482]
[1721180728479,14.74,163.26,163.21,30.4482]
[1721180728687,20.8653,163.26,163.21,30.4482]
[1721180728882,1.4431475,163.25,163.21,15.7082]
[1721180729082,1.4431475,163.25,163.18,15.3204]
[1721180729083,16.1831475,163.25,163.19,6.1277]
[1721180729293,1.4431475,163.24,163.18,15.3204]
[1721180729598,14.74,163.23,163.19,6.1277]
[1721180729799,14.74,163.24,163.19,20.8677]
[1721180730581,16.1831475,163.23,163.18,36.1885]
[1721180731175,14.74,163.25,163.21,6.127]
[1721180731395,14.74,163.26,163.21,6.127]
[1721180731596,1.4431475,163.25,163.2,30.0578]
[1721180731784,16.1831475,163.25,163.2,36.1851]
[1721180732102,16.1831475,163.26,163.21,6.1269]
[1721180732606,16.1831475,163.26,163.22,6.1266]
[1721180732900,16.1831475,163.26,163.21,6.1269]
[1721180733074,16.1831475,163.26,163.2,30.0578]
[1721180733275,16.1831475,163.26,163.2,36.1851]
[1721180733707,14.74,163.25,163.2,36.1851]
[1721180735305,1.4431475,163.24,163.2,36.1851]
[1721180735480,16.1831475,163.24,163.2,21.4451]
[1721180735679,14.74,163.24,163.2,15.3178]
[1721180736397,14.74,163.24,163.2,21.4451]
[1721180736583,14.74,163.25,163.2,21.4451]
[1721180736786,14.74,163.25,163.21,6.127]
[1721180737100,1.4431475,163.24,163.2,21.4451]
[1721180737304,16.1831475,163.25,163.22,6.1263]
[1721180737477,14.74,163.25,163.21,1.22529028]
[1721180737678,1.4431475,163.28,163.23,6.126]
[1721180737883,16.1831475,163.28,163.23,6.126]
[1721180738183,16.1831475,163.28,163.23,20.866]
[1721180738380,16.1831475,163.28,163.24,1.22503933]
[1721180738599,16.1831475,163.28,163.23,20.866]
[1721180738793,16.1831475,163.28,163.23,6.126]
[1721180739176,16.1831475,163.28,163.23,20.866]
[1721180739404,16.1831475,163.29,163.23,14.74]
[1721180739782,1.4431475,163.3,163.24,15.96494602]
[1721180739989,14.74,163.32,163.27,14.74]
[1721180740192,14.74,163.33,163.28,1.22473962]
[1721180740395,1.4431475,163.32,163.28,1.22473962]
[1721180740702,16.1831475,163.32,163.28,1.22474053]
[1721180740893,14.74,163.33,163.28,14.74]
[1721180741101,16.1831475,163.33,163.27,14.74]
[1721180741406,16.1831475,163.32,163.27,14.74]
[1721180741600,14.74,163.31,163.26,30.0528]
[1721180741796,14.74,163.31,163.26,36.1779]
[1721180742000,1.4431475,163.32,163.26,36.1779]
[1721180742207,1.4431475,163.33,163.27,21.87202702]
[1721180742508,14.74,163.32,163.27,20.8647]
[1721180742705,16.1831475,163.32,163.26,30.0528]
[1721180743011,14.74,163.31,163.26,14.74]
[1721180743205,16.1831475,163.31,163.26,20.865]
[1721180743402,14.74,163.32,163.27,22.08945459]
[1721180743603,22.3060475,163.32,163.26,20.8651]
[1721180743789,14.74,163.31,163.26,20.8651]
[1721180744212,1.4431475,163.3,163.26,20.8651]
[1721180744412,1.4431475,163.3,163.25,15.3132]
[1721180744585,16.1831475,163.29,163.25,15.3132]
[1721180744790,14.74,163.28,163.25,15.3132]
[1721180745110,14.74,163.3,163.26,6.125]
[1721180745488,14.74,163.3,163.26,7.34984205]
[1721180745804,14.74,163.3,163.25,30.0532]
[1721180745805,1.4431475,163.29,163.25,21.4386]
[1721180745986,16.1831475,163.29,163.25,15.3132]
[1721180746186,14.74,163.28,163.23,14.74]
[1721180746419,1.4431475,163.27,163.22,20.8666]
[1721180746594,14.74,163.25,163.21,15.3175]
[1721180747117,14.74,163.25,163.22,6.1266]
[1721180747415,14.74,163.25,163.21,21.4445]
[1721180748991,1.4431475,163.25,163.21,21.4445]
[1721180749301,1.4431475,163.25,163.22,6.1265]
[1721180749606,1.4431475,163.25,163.21,15.3175]
[1721180749795,14.74,163.24,163.2,6.1273]
[1721180749997,1.4431475,163.24,163.21,6.1268]
[1721180750203,16.1831475,163.25,163.2,15.3179]
[1721180750395,1.4431475,163.24,163.2,15.3179]
[1721180750634,16.1831475,163.24,163.21,6.1269]
[1721180750798,14.74,163.24,163.21,6.1269]
[1721180751803,14.74,163.25,163.22,6.1266]
[1721180752001,1.4431475,163.24,163.22,6.1266]
[1721180752396,1.4431475,163.23,163.2,21.4453]
[1721180752604,14.74,163.23,163.2,21.4453]
[1721180752811,16.1831475,163.22,163.2,21.4453]
[1721180753113,14.74,163.22,163.2,21.4453]
[1721180753314,16.1831475,163.21,163.17,21.4493]
[1721180753515,16.1831475,163.2,163.17,21.4493]
[1721180753698,14.74,163.21,163.18,6.1281]
[1721180754403,14.74,163.21,163.17,15.3211]
[1721180754404,14.74,163.19,163.16,6.1287]
[1721180754612,14.74,163.18,163.16,6.1287]
[1721180755005,14.74,163.18,163.14,16.1640016]
[1721180755006,14.74,163.18,163.15,6.1292]
[1721180755207,16.1831475,163.17,163.14,16.1640016]
[1721180755511,16.1831475,163.16,163.14,16.1640016]
[1721180755688,16.1831475,163.15,163.14,0.8402016]
[1721180756103,22.4698475,163.15,163.14,0.8402016]
[1721180759410,7.7298475,163.15,163.14,0.8402016]
[1721180759601,21.0267,163.15,163.14,0.8402016]
[1721180760396,14.74,163.15,163.14,0.8402016]
[1721180760700,1.4431475,163.16,163.14,0.8402016]
[1721180760701,14.74,163.16,163.14,0.8402016]
[1721180761818,14.74,163.15,163.14,0.8402016]
[1721180762210,14.74,163.16,163.14,0.8402016]
[1721180763518,16.1831475,163.15,163.14,0.8402016]
[1721180763718,6.1286,163.17,163.14,0.8402016]
[1721180763923,20.8689,163.16,163.14,0.8402016]
[1721180764124,14.74,163.15,163.14,0.8402016]
[1721180764513,16.1831475,163.15,163.14,0.8402016]
[1721180765411,22.3124475,163.15,163.14,0.8402016]
[1721180771308,42.3124475,163.15,163.14,0.8402016]
[1721180771924,42.6524475,163.15,163.14,0.8402016]
[1721180775935,27.9124475,163.15,163.14,0.8402016]
[1721180776145,42.6524475,163.15,163.14,0.8402016]
[1721180778719,27.9124475,163.15,163.14,0.8402016]
[1721180778920,42.6524475,163.15,163.14,0.8402016]
[1721180780440,6.1318,163.09,163.03,6.1335]
[1721180780673,14.74,163.06,163.03,6.1335]
[1721180781010,6.1318,163.09,163.03,6.1335]
[1721180781236,14.74,163.06,163.03,6.1335]
[1721180781444,6.1313,163.1,163.03,6.1335]
[1721180781445,1.4431475,163.09,163.04,6.1333]
[1721180781631,6.1304,163.12,163.05,1.22637847]
[1721180781834,6.1303,163.13,163.06,6.1326]
[1721180782039,6.1303,163.13,163.07,1.22622242]
[1721180782040,14.74,163.1,163.07,1.22622242]
[1721180782223,21.4431475,163.12,163.08,1.22624027]
[1721180782224,14.74,163.09,163.08,1.22624027]
[1721180782424,14.74,163.09,163.06,6.1326]
[1721180782839,6.1308,163.11,163.05,21.4649]
[1721180783032,14.74,163.09,163.06,1.22622816]
[1721180783228,1.4431475,163.14,163.06,7.35882816]
[1721180783430,14.74,163.11,163.07,6.1322]
[1721180783743,14.74,163.1,163.05,15.332]
[1721180784049,14.74,163.09,163.04,6.3031]
[1721180784224,14.74,163.09,163.05,1.22631197]
[1721180785050,14.74,163.08,163.04,6.1331]
[1721180785267,14.74,163.07,163.02,37.808]
[1721180785550,14.74,163.06,163.02,37.808]
[1721180786118,14.74,163.06,163.03,6.1337]
[1721180786747,14.74,163.06,163.02,31.6741]
[1721180787253,14.74,163.06,163.02,37.8082]
[1721180788538,14.74,163.06,163.02,31.6741]
[1721180788752,14.74,163.06,163.03,1.22656102]
[1721180789052,14.74,163.06,163.02,37.8081]
[1721180790345,14.74,163.05,163.02,37.8081]
[1721180790748,14.74,163.05,163.03,1.22658752]
[1721180790948,14.74,163.06,163.03,7.36028752]
[1721180791426,14.74,163.06,163.03,1.22658752]
[1721180791927,14.74,163.06,163.03,7.36028752]
[1721180792772,14.74,163.06,163.02,31.6741]
[1721180793267,1.4431475,163.13,163.03,1.22656162]
[1721180793449,21.4431475,163.13,163.03,1.22656162]
[1721180793654,14.74,163.07,163.02,31.8441]
[1721180793851,14.74,163.07,163.03,0.17]
[1721180794064,14.74,163.07,163.03,1.39642591]
[1721180794449,14.74,163.07,163.04,6.1331]
[1721180795868,14.74,163.06,163.02,37.8081]
[1721180796047,6.1312,163.1,163.03,0.39520664]
[1721180796249,1.4431475,163.09,163.03,0.39520664]
[1721180796454,14.74,163.07,163.02,47.3745079]
[1721180797147,14.74,163.07,163.02,37.8079]
[1721180797776,14.74,163.06,163.02,37.8079]
[1721180798349,14.74,163.07,163.03,7.36036222]
[1721180798777,14.74,163.06,163.04,6.1334]
[1721180799066,14.74,163.09,163.05,1.22643612]
[1721180799266,14.74,163.1,163.05,15.96643612]
[1721180799941,6.1307,163.12,163.05,7.35943612]
[1721180800141,14.74,163.09,163.05,7.35943612]
[1721180800360,7.5731475,163.14,163.06,6.1326]
[1721180800690,14.74,163.1,163.04,36.376]
[1721180800866,6.1313,163.1,163.05,1.22633713]
[1721180801073,14.74,163.08,163.05,1.22633713]
[1721180801278,14.74,163.09,163.05,7.35923713]
[1721180801448,14.74,163.08,163.05,6.1329]
[1721180802349,14.74,163.08,163.05,7.3592623]
[1721180803159,14.74,163.09,163.05,7.3592623]
[1721180803665,14.74,163.08,163.05,7.35922974]
[1721180803974,7.5736475,163.12,163.04,15.3329]
[1721180803975,1.4431475,163.12,163.04,15.3329]
[1721180804187,14.74,163.06,163.04,15.3329]
[1721180804354,14.74,163.05,163.02,22.473]
[1721180805176,14.74,163.05,163.02,6.1341]
[1721180807059,14.74,163.05,163.01,15.3362]
[1721180807060,14.74,163.05,163.01,21.4707]
[1721180807260,14.74,163.04,163.01,21.4707]
[1721180807662,14.74,163.03,163.01,15.3362]
[1721180807854,14.74,163.03,163.0,6.1349]
[1721180807855,14.74,163.02,162.98,38.80730853]
[1721180808151,14.74,162.99,162.98,0.8402016]
[1721180810480,14.74,163.0,162.98,0.8402016]
[1721180811250,16.1831475,163.01,162.98,0.8402016]
[1721180811859,14.74,163.01,162.98,0.8402016]
[1721180812477,23.7945475,163.07,163.01,6.1345]
[1721180812664,14.74,163.04,162.99,30.0778]
[1721180812866,16.1831475,163.03,162.98,21.7155016]
[1721180813055,6.1331,163.05,162.99,7.36208864]
[1721180813263,14.74,163.04,162.99,7.36208864]
[1721180814071,14.74,163.04,162.99,6.1352]
[1721180814389,14.74,163.04,163.0,1.22679657]
[1721180815051,14.74,163.04,162.99,6.1352]
[1721180815254,16.1831475,163.03,162.98,16.1789016]
[1721180815474,16.1831475,163.03,162.98,37.0546016]
[1721180816186,14.74,163.03,162.98,37.0546016]
[1721180816570,14.74,163.03,162.98,22.3146016]
[1721180817183,7.5768475,163.04,162.98,16.1789016]
[1721180817359,14.74,163.02,162.98,16.1789016]
[1721180818063,14.74,163.02,162.98,22.3143016]
[1721180818491,16.1831475,163.02,162.98,22.3143016]
[1721180818863,1.4431475,163.01,162.98,22.3143016]
[1721180819188,16.1831475,163.02,162.98,22.3143016]
[1721180819772,6.1334,163.04,162.98,16.1789016]
[1721180819773,16.1831475,163.01,162.98,16.1789016]
[1721180819974,14.74,163.01,162.98,16.1789016]
[1721180821087,1.4431475,163.03,162.99,6.1352]
[1721180821282,14.74,163.02,162.99,6.1352]
[1721180821682,1.4431475,163.01,162.98,16.1789016]
[1721180822088,16.1831475,163.02,162.98,16.1789016]
[1721180822298,1.4431475,163.02,162.98,23.54147371]
[1721180822498,1.4431475,163.02,162.98,22.3145016]
[1721180823398,14.74,163.01,162.98,0.8402016]
[1721180823591,14.74,163.02,162.99,1.22640157]
[1721180823795,1.4431475,163.04,163.0,6.1349]
[1721180824174,16.1831475,163.04,163.0,6.1349]
[1721180824377,16.1831475,163.04,162.99,16.56420157]
[1721180824575,16.1831475,163.04,162.99,15.3378]
[1721180824973,16.1831475,163.04,162.99,16.56472042]
[1721180825282,16.1831475,163.04,162.99,22.69982042]
[1721180825588,21.4431475,163.05,163.0,6.1347]
[1721180825779,1.4431475,163.04,162.99,30.0778]
[1721180825981,16.1831475,163.04,162.99,15.3378]